fUST/lending_fUST_20240501
["ID","MTS","AMOUNT","RATE_DAILY","PERIOD"]
[325172835,1714548642200,-525.138121,0.00047489,120]
[325172837,1714548642210,-150.59339783,0.00047684,2]
[325172839,1714548642225,-507.13948,0.00047954,2]
[325172841,1714548642235,-1241.12019146,0.00048104,120]
[325172842,1714548642245,-165.86093555,0.00048104,120]
[325172845,1714548642256,-159.98080961,0.00048188,30]
[325172846,1714548642266,-2896.81398598,0.00049,7]
[325172848,1714548642275,-151.0,0.00049726,120]
[325172850,1714548642284,-507.13949,0.00049813,2]
[325172852,1714548642294,-161.364383,0.00049863,2]
[325172854,1714548642303,-169.351643,0.00049863,2]
[325172856,1714548642312,-154.70605849,0.0005,30]
[325172858,1714548642322,-151.0,0.0005,120]
[325172860,1714548642332,-567.93751804,0.0005,7]
[325172862,1714548642342,-623.47395282,0.00050341,14]
[325172864,1714548642352,-205.038586,0.00050594,2]
[325172866,1714548642361,-1000.0,0.00051029,30]
[325172869,1714548642370,-507.13948,0.00051671,2]
[325172870,1714548642379,-151.0,0.00052082,120]
[325172872,1714548642389,-1241.12019146,0.00052114,120]
[325172874,1714548642398,-165.86093555,0.00052114,120]
[325172876,1714548642408,-150.59339783,0.00052982,2]
[325172878,1714548642418,-525.138121,0.00053425,120]
[325172881,1714548642428,-507.13949,0.0005353,2]
[325172883,1714548642437,-301.18679565,0.00053873,4]
[325172885,1714548642448,-153.0,0.00053883,30]
[325172886,1714548642457,-203.8574549,0.00053883,2]
[325172888,1714548642466,-153.0,0.00053883,30]
[325172891,1714548642482,-203.8574549,0.00053883,2]
[325172893,1714548642492,-153.0,0.00053883,2]
[325172894,1714548642502,-271.2019791,0.00053883,2]
[325172896,1714548642511,-203.8574549,0.00053883,2]
[325172898,1714548642520,-203.8574549,0.00053883,2]
[325172900,1714548642530,-153.0,0.00053883,2]
[325172903,1714548642540,-153.0,0.00053883,30]
[325172904,1714548642549,-153.0,0.00053883,2]
[325172906,1714548642559,-203.8574549,0.00053883,2]
[325172908,1714548642568,-153.0,0.00053883,2]
[325172911,1714548642578,-153.0,0.00053883,30]
[325172912,1714548642588,-203.8574549,0.00053883,2]
[325172915,1714548642597,-153.0,0.00053883,2]
[325172917,1714548642606,-203.8574549,0.00053883,2]
[325172919,1714548642615,-153.0,0.00053883,30]
[325172921,1714548642624,-153.0,0.00053883,2]
[325172923,1714548642633,-203.8574549,0.00053883,2]
[325172925,1714548642642,-620590.2491,0.00054,10]
[325172926,1714548642651,-151.0,0.00054438,120]
[325172928,1714548642660,-153.0,0.00054705,30]
[325172931,1714548642670,-153.0,0.00054705,30]
[325172933,1714548642679,-153.0,0.00054705,30]
[325172934,1714548642688,-153.0,0.00054705,30]
[325172937,1714548642697,-153.0,0.00054705,30]
[325172939,1714548642706,-153.0,0.00054705,30]
[325172941,1714548642716,-153.0,0.00054705,30]
[325172943,1714548642733,-153.0,0.00054705,30]
[325172944,1714548642742,-153.0,0.00054705,30]
[325172946,1714548642751,-153.0,0.00054705,30]
[325172948,1714548642760,-203.8574549,0.00054705,2]
[325172950,1714548642769,-203.8574549,0.00054705,2]
[325172952,1714548642778,-203.8574549,0.00054705,2]
[325172954,1714548642787,-203.8574549,0.00054705,2]
[325172956,1714548642796,-203.8574549,0.00054705,2]
[325172958,1714548642806,-203.8574549,0.00054705,2]
[325172960,1714548642816,-203.8574549,0.00054705,2]
[325172963,1714548642825,-203.8574549,0.00054705,2]
[325172964,1714548642836,-203.8574549,0.00054705,2]
[325172967,1714548642846,-203.8574549,0.00054705,2]
[325172969,1714548642855,-203.8574549,0.00054705,2]
[325172970,1714548642864,-190.6317478,0.00054705,2]
[325172973,1714548642873,-203.8574549,0.00054705,2]
[325172975,1714548642883,-203.8574549,0.00054705,2]
[325172977,1714548642892,-203.8574549,0.00054705,2]
[325172979,1714548642901,-203.8574549,0.00054705,2]
[325172980,1714548642910,-203.6061089,0.00054705,2]
[325172982,1714548642919,-153.0,0.00054705,2]
[325172985,1714548642928,-341.557252,0.00054705,2]
[325172986,1714548642938,-235.8386368,0.00054705,2]
[325172988,1714548642947,-153.0,0.00054705,2]
[325172990,1714548642959,-602.3735913,0.00054778,7]
[325172993,1714548642974,-1000.0,0.00054794,120]
[325172994,1714548642983,-1000.0,0.00054794,120]
[325172996,1714548642993,-1000.0,0.00054794,120]
[325172998,1714548643006,-1000.0,0.00054794,120]
[325173000,1714548643016,-1000.0,0.00054794,120]
[325173002,1714548643026,-1007.92034152,0.00054794,120]
[325173004,1714548643035,-557.71,0.00054794,120]
[325173007,1714548643046,-557.71,0.00054794,120]
[325173008,1714548643055,-557.71,0.00054794,120]
[325173010,1714548643064,-557.71,0.00054794,120]
[325173013,1714548643074,-557.71,0.00054794,120]
[325173015,1714548643084,-557.71,0.00054794,120]
[325173017,1714548643094,-557.71,0.00054794,120]
[325173019,1714548643104,-557.71,0.00054794,120]
[325173021,1714548643113,-557.71,0.00054794,120]
[325173023,1714548643122,-557.71,0.00054794,120]
[325173025,1714548643131,-557.71,0.00054794,120]
[325173027,1714548643140,-557.71,0.00054794,120]
[325173029,1714548643150,-557.71,0.00054794,120]
[325173031,1714548643159,-557.71,0.00054794,120]
[325173033,1714548643169,-557.71,0.00054794,120]
[325173035,1714548643178,-557.71,0.00054794,120]
[325173037,1714548643188,-557.71,0.00054794,120]
[325173053,1714548643310,-557.71,0.00054794,120]
[325173055,1714548643320,-557.71,0.00054794,120]
[325173057,1714548643330,-557.71,0.00054794,120]
[325173059,1714548643340,-557.71,0.00054794,120]
[325173062,1714548643350,-557.71,0.00054794,120]
[325173064,1714548643359,-557.71,0.00054794,120]
[325173067,1714548643369,-557.89441454,0.00054794,120]
[325173069,1714548643384,-22347.7563029,0.00054795,2]
[325173071,1714548643396,-507.13949,0.00055389,2]
[325173073,1714548643405,-161.364383,0.00055671,2]
[325173075,1714548643415,-155.27738812,0.00056381,4]
[325173078,1714548643425,-623.47395282,0.00056546,14]
[325173081,1714548643434,-151.0,0.00056795,120]
[325173084,1714548643443,-507.13948,0.00057248,2]
[325173086,1714548643452,-1241.12019146,0.00057462,120]
[325173089,1714548643461,-165.86093555,0.00057462,120]
[325173092,1714548643475,-204.0,0.0005751,35]
[325173095,1714548643484,-204.0,0.0005752,35]
[325173097,1714548643493,-157.89,0.0005753,35]
[325173100,1714548643503,-204.0,0.0005753,35]
[325173103,1714548643512,-180.62,0.0005753,35]
[325173106,1714548643521,-242.05420062,0.00057532,4]
[325173109,1714548643530,-514.69752943,0.00057532,4]
[325173112,1714548643540,-500.0,0.00057534,120]
[325173116,1714548643551,-151.556685,0.00057534,120]
[325173118,1714548643561,-202.35874472,0.00057534,120]
[325173125,1714548643571,-500.0,0.00057534,120]
[325173131,1714548643580,-500.70979911,0.00057534,120]
[325173136,1714548643590,-500.0,0.00057534,120]
[325173142,1714548643600,-500.0,0.00057534,120]
[325173147,1714548643610,-500.49125673,0.00057534,120]
[325173151,1714548643620,-500.96041443,0.00057534,120]
[325173154,1714548643630,-1081.66,0.00057534,120]
[325173157,1714548643639,-500.0,0.00057534,120]
[325173160,1714548643648,-500.0,0.00057534,120]
[325173164,1714548643657,-500.0,0.00057534,120]
[325173167,1714548643667,-993.67,0.00057534,120]
[325173171,1714548643676,-500.0,0.00057534,120]
[325173174,1714548643685,-410.03210294,0.00057534,120]
[325173177,1714548643694,-500.0,0.00057534,120]
[325173180,1714548643704,-500.0,0.00057534,120]
[325173182,1714548643713,-500.1893547,0.00057534,120]
[325173185,1714548643729,-500.0,0.00057534,120]
[325173187,1714548643738,-500.0,0.00057534,120]
[325173190,1714548643747,-500.0,0.00057534,120]
[325173192,1714548643756,-500.0,0.00057534,120]
[325173196,1714548643765,-500.0,0.00057534,30]
[325173199,1714548643775,-543.43716989,0.00057534,120]
[325173202,1714548643785,-805.8,0.00057534,120]
[325173205,1714548643794,-500.0,0.00057534,120]
[325173207,1714548643803,-500.0,0.00057534,120]
[325173210,1714548643812,-154.95425391,0.00057534,120]
[325173213,1714548643821,-500.0,0.00057534,120]
[325173215,1714548643830,-505.24966941,0.00057534,120]
[325173219,1714548643839,-500.0,0.00057534,120]
[325173221,1714548643848,-500.0,0.00057534,120]
[325173224,1714548643858,-500.0,0.00057534,120]
[325173227,1714548643867,-500.0,0.00057534,120]
[325173231,1714548643876,-500.0,0.00057534,120]
[325173232,1714548643887,-500.0,0.00057534,120]
[325173234,1714548643897,-500.0,0.00057534,120]
[325173236,1714548643906,-500.0,0.00057534,120]
[325173237,1714548643915,-500.90495876,0.00057534,120]
[325173239,1714548643924,-815.88,0.00057534,120]
[325173241,1714548643933,-500.0,0.00057534,120]
[325173243,1714548643943,-500.0,0.00057534,120]
[325173244,1714548643951,-500.0,0.00057534,120]
[325173246,1714548643964,-1038.28298986,0.00057534,120]
[325173248,1714548643981,-500.0,0.00057534,120]
[325173250,1714548643990,-500.0,0.00057534,120]
[325173252,1714548644000,-500.0,0.00057534,120]
[325173254,1714548644012,-500.0,0.00057534,120]
[325173256,1714548644021,-500.42016038,0.00057534,120]
[325173257,1714548644030,-500.0,0.00057534,120]
[325173259,1714548644039,-500.38079488,0.00057534,120]
[325173261,1714548644049,-500.0,0.00057534,120]
[325173263,1714548644059,-500.0,0.00057534,120]
[325173265,1714548644069,-500.6816231,0.00057534,120]
[325173266,1714548644082,-500.0,0.00057534,120]
[325173268,1714548644091,-500.0,0.00057534,120]
[325173270,1714548644101,-500.3908935,0.00057534,120]
[325173272,1714548644110,-500.0,0.00057534,120]
[325173273,1714548644120,-500.0,0.00057534,120]
[325173275,1714548644129,-542.40275928,0.00057534,120]
[325173277,1714548644139,-500.19369201,0.00057534,120]
[325173279,1714548644149,-500.0,0.00057534,120]
[325173281,1714548644159,-500.0,0.00057534,120]
[325173283,1714548644171,-500.0,0.00057534,120]
[325173284,1714548644180,-263.83824554,0.00057534,120]
[325173286,1714548644190,-520.71197771,0.00057534,120]
[325173288,1714548644199,-500.0,0.00057534,120]
[325173290,1714548644208,-500.0,0.00057534,120]
[325173291,1714548644217,-500.0,0.00057534,120]
[325173293,1714548644235,-375.42099038,0.00057534,120]
[325173295,1714548644245,-500.0,0.00057534,120]
[325173297,1714548644255,-500.0,0.00057534,120]
[325173299,1714548644264,-500.42268836,0.00057534,120]
[325173301,1714548644274,-500.0,0.00057534,120]
[325173302,1714548644283,-300.0,0.00057534,7]
[325173304,1714548644294,-500.0,0.00057534,120]
[325173306,1714548644304,-500.0,0.00057534,120]
[325173308,1714548644313,-500.0,0.00057534,120]
[325173310,1714548644322,-500.0,0.00057534,120]
[325173312,1714548644332,-500.0,0.00057534,120]
[325173313,1714548644341,-500.0,0.00057534,120]
[325173315,1714548644350,-500.0,0.00057534,7]
[325173317,1714548644360,-500.0,0.00057534,120]
[325173319,1714548644369,-500.0,0.00057534,120]
[325173320,1714548644378,-500.0,0.00057534,120]
[325173322,1714548644388,-500.0,0.00057534,120]
[325173324,1714548644397,-500.0,0.00057534,120]
[325173326,1714548644406,-190.33138531,0.00057534,120]
[325173327,1714548644415,-500.0,0.00057534,120]
[325173329,1714548644424,-531.57090197,0.00057534,120]
[325173331,1714548644433,-1425.14,0.00057534,120]
[325173333,1714548644442,-792.54,0.00057534,120]
[325173334,1714548644451,-500.0,0.00057534,120]
[325173336,1714548644461,-500.0,0.00057534,120]
[325173338,1714548644474,-500.0,0.00057534,120]
[325173340,1714548644483,-500.0,0.00057534,120]
[325173342,1714548644492,-500.0,0.00057534,120]
[325173344,1714548644501,-500.0,0.00057534,120]
[325173346,1714548644510,-500.0,0.00057534,120]
[325173347,1714548644519,-500.0,0.00057534,120]
[325173349,1714548644528,-502.03854462,0.00057534,120]
[325173351,1714548644538,-500.0,0.00057534,120]
[325173353,1714548644547,-500.0,0.00057534,120]
[325173355,1714548644556,-500.0,0.00057534,120]
[325173357,1714548644566,-500.0,0.00057534,120]
[325173358,1714548644575,-500.0,0.00057534,120]
[325173360,1714548644583,-500.0,0.00057534,120]
[325173362,1714548644599,-481.78261855,0.00057534,120]
[325173364,1714548644608,-500.0,0.00057534,120]
[325173366,1714548644617,-501.57021067,0.00057534,120]
[325173368,1714548644626,-500.0,0.00057534,120]
[325173370,1714548644635,-500.0,0.00057534,120]
[325173371,1714548644646,-151.0,0.00057534,120]
[325173373,1714548644655,-500.0,0.00057534,120]
[325173375,1714548644664,-500.0,0.00057534,120]
[325173377,1714548644673,-500.0,0.00057534,30]
[325173379,1714548644683,-500.0,0.00057534,120]
[325173381,1714548644692,-500.0,0.00057534,120]
[325173383,1714548644701,-500.0,0.00057534,7]
[325173385,1714548644711,-500.0,0.00057534,120]
[325173386,1714548644722,-500.0,0.00057534,120]
[325173388,1714548644732,-500.0,0.00057534,120]
[325173390,1714548644741,-500.0,0.00057534,120]
[325173392,1714548644751,-500.0,0.00057534,120]
[325173394,1714548644760,-500.0,0.00057534,120]
[325173396,1714548644769,-500.0,0.00057534,120]
[325173398,1714548644778,-500.0,0.00057534,120]
[325173400,1714548644788,-500.0,0.00057534,120]
[325173401,1714548644797,-516.72858567,0.00057534,120]
[325173403,1714548644806,-500.0,0.00057534,120]
[325173405,1714548644815,-500.0,0.00057534,120]
[325173408,1714548644824,-500.0,0.00057534,120]
[325173410,1714548644833,-500.0,0.00057534,120]
[325173413,1714548644842,-183.54657057,0.00057534,120]
[325173415,1714548644852,-867.57,0.00057534,120]
[325173417,1714548644861,-309.8731701,0.00057534,120]
[325173419,1714548644871,-500.0,0.00057534,120]
[325173421,1714548644880,-239.37878792,0.00057534,120]
[325173423,1714548644889,-500.0,0.00057534,7]
[325173425,1714548644897,-500.0,0.00057534,120]
[325173426,1714548644906,-500.0,0.00057534,120]
[325173428,1714548644915,-500.0,0.00057534,120]
[325173430,1714548644924,-500.0,0.00057534,120]
[325173432,1714548644933,-500.0,0.00057534,120]
[325173434,1714548644942,-500.0,0.00057534,120]
[325173436,1714548644951,-500.0,0.00057534,120]
[325173438,1714548644964,-501.37907364,0.00057534,120]
[325173440,1714548644977,-495.00160973,0.00057534,120]
[325173441,1714548644986,-500.0,0.00057534,120]
[325173443,1714548644995,-500.0,0.00057534,120]
[325173445,1714548645009,-500.0,0.00057534,120]
[325173447,1714548645020,-500.0,0.00057534,120]
[325173449,1714548645029,-500.0,0.00057534,120]
[325173451,1714548645039,-500.0,0.00057534,120]
[325173453,1714548645048,-500.0,0.00057534,2]
[325173455,1714548645057,-500.0,0.00057534,120]
[325173456,1714548645067,-500.0,0.00057534,120]
[325173458,1714548645076,-500.0,0.00057534,120]
[325173460,1714548645086,-500.0,0.00057534,120]
[325173462,1714548645095,-500.0,0.00057534,120]
[325173464,1714548645104,-500.0,0.00057534,120]
[325173466,1714548645114,-619.74279753,0.00057534,120]
[325173468,1714548645123,-500.0,0.00057534,120]
[325173469,1714548645132,-500.0,0.00057534,120]
[325173471,1714548645141,-500.0,0.00057534,120]
[325173473,1714548645150,-500.0,0.00057534,120]
[325173475,1714548645160,-500.0,0.00057534,120]
[325173477,1714548645169,-500.0,0.00057534,120]
[325173479,1714548645178,-500.0,0.00057534,120]
[325173481,1714548645188,-500.0,0.00057534,120]
[325173483,1714548645197,-500.0,0.00057534,120]
[325173484,1714548645206,-500.0,0.00057534,120]
[325173486,1714548645215,-500.0,0.00057534,120]
[325173488,1714548645227,-523.47522486,0.00057534,120]
[325173490,1714548645237,-500.0,0.00057534,120]
[325173492,1714548645247,-500.0,0.00057534,120]
[325173494,1714548645256,-500.0,0.00057534,120]
[325173496,1714548645265,-500.0,0.00057534,120]
[325173498,1714548645274,-500.0,0.00057534,120]
[325173500,1714548645283,-500.0,0.00057534,120]
[325173502,1714548645292,-500.0,0.00057534,120]
[325173503,1714548645301,-500.0,0.00057534,120]
[325173505,1714548645310,-586.6582426,0.00057534,120]
[325173507,1714548645320,-500.0,0.00057534,120]
[325173509,1714548645328,-500.0,0.00057534,120]
[325173511,1714548645337,-500.0,0.00057534,120]
[325173513,1714548645346,-500.0,0.00057534,120]
[325173515,1714548645355,-500.0,0.00057534,120]
[325173516,1714548645364,-500.0,0.00057534,120]
[325173518,1714548645374,-500.0,0.00057534,120]
[325173520,1714548645383,-500.0,0.00057534,120]
[325173522,1714548645392,-605.39357917,0.00057534,120]
[325173524,1714548645401,-504.60657867,0.00057534,120]
[325173526,1714548645411,-500.0,0.00057534,120]
[325173528,1714548645419,-500.0,0.00057534,120]
[325173529,1714548645428,-154.85969819,0.00057534,2]
[325173531,1714548645437,-500.30006974,0.00057534,120]
[325173541,1714548645540,-500.0,0.00057534,120]
[325173543,1714548645551,-500.0,0.00057534,2]
[325173545,1714548645560,-500.0,0.00057534,120]
[325173547,1714548645569,-500.0,0.00057534,120]
[325173549,1714548645579,-500.0,0.00057534,120]
[325173551,1714548645589,-500.39095802,0.00057534,2]
[325173553,1714548645598,-500.0,0.00057534,120]
[325173555,1714548645607,-184.8153411,0.00057534,120]
[325173557,1714548645617,-500.0,0.00057534,120]
[325173558,1714548645626,-500.0,0.00057534,120]
[325173560,1714548645635,-500.0,0.00057534,120]
[325173562,1714548645644,-500.0,0.00057534,120]
[325173563,1714548645653,-500.0,0.00057534,120]
[325173565,1714548645663,-540.29187084,0.00057534,120]
[325173567,1714548645672,-500.0,0.00057534,120]
[325173569,1714548645681,-233.46401938,0.00057534,2]
[325173570,1714548645690,-500.0,0.00057534,120]
[325173572,1714548645699,-505.10575989,0.00057534,120]
[325173574,1714548645708,-500.6678039,0.00057534,120]
[325173576,1714548645717,-500.0,0.00057534,120]
[325173578,1714548645731,-1786.81,0.00057534,120]
[325173579,1714548645741,-500.0,0.00057534,120]
[325173581,1714548645749,-500.0,0.00057534,120]
[325173583,1714548645758,-500.0,0.00057534,120]
[325173585,1714548645768,-500.0,0.00057534,120]
[325173587,1714548645777,-500.0,0.00057534,120]
[325173588,1714548645786,-500.0,0.00057534,120]
[325173590,1714548645796,-1698.93,0.00057534,120]
[325173592,1714548645805,-500.0,0.00057534,120]
[325173594,1714548645814,-500.0,0.00057534,120]
[325173596,1714548645823,-400.23008702,0.00057534,120]
[325173598,1714548645833,-500.0,0.00057534,120]
[325173599,1714548645843,-500.0,0.00057534,120]
[325173601,1714548645852,-500.0,0.00057534,120]
[325173603,1714548645861,-500.0,0.00057534,120]
[325173605,1714548645871,-500.0,0.00057534,120]
[325173607,1714548645880,-500.0,0.00057534,120]
[325173609,1714548645889,-500.0,0.00057534,120]
[325173610,1714548645898,-500.0,0.00057534,120]
[325173612,1714548645908,-500.0,0.00057534,120]
[325173614,1714548645917,-500.0,0.00057534,120]
[325173616,1714548645927,-500.0,0.00057534,120]
[325173618,1714548645936,-506.11602244,0.00057534,120]
[325173620,1714548645945,-502.92570621,0.00057534,120]
[325173622,1714548645956,-500.0,0.00057534,120]
[325173624,1714548645966,-500.0,0.00057534,120]
[325173626,1714548645980,-500.0,0.00057534,120]
[325173627,1714548645989,-500.0,0.00057534,120]
[325173629,1714548645999,-731.92,0.00057534,120]
[325173631,1714548646012,-500.0,0.00057534,120]
[325173633,1714548646022,-500.0,0.00057534,120]
[325173635,1714548646031,-500.0,0.00057534,120]
[325173637,1714548646040,-500.0,0.00057534,120]
[325173639,1714548646050,-500.0,0.00057534,120]
[325173641,1714548646059,-500.0,0.00057534,120]
[325173643,1714548646068,-500.0,0.00057534,120]
[325173645,1714548646078,-500.0,0.00057534,120]
[325173647,1714548646092,-3165.89,0.00057534,2]
[325173649,1714548646100,-500.0,0.00057534,120]
[325173651,1714548646110,-537.01,0.00057534,120]
[325173653,1714548646119,-500.0,0.00057534,120]
[325173655,1714548646128,-500.0,0.00057534,120]
[325173657,1714548646137,-500.0,0.00057534,120]
[325173658,1714548646146,-500.71356787,0.00057534,120]
[325173659,1714548646156,-500.0,0.00057534,120]
[325173660,1714548646165,-500.0,0.00057534,120]
[325173661,1714548646174,-1479.46,0.00057534,120]
[325173662,1714548646183,-500.0,0.00057534,120]
[325173663,1714548646192,-2952.49,0.00057534,120]
[325173664,1714548646201,-500.0,0.00057534,120]
[325173665,1714548646210,-500.0,0.00057534,120]
[325173666,1714548646223,-500.0,0.00057534,120]
[325173667,1714548646232,-500.0,0.00057534,120]
[325173668,1714548646242,-500.0,0.00057534,120]
[325173670,1714548646252,-500.0,0.00057534,120]
[325173671,1714548646261,-1301.34,0.00057534,120]
[325173673,1714548646271,-500.0,0.00057534,120]
[325173675,1714548646281,-579.45,0.00057534,120]
[325173676,1714548646291,-622.98,0.00057534,120]
[325173678,1714548646300,-500.0,0.00057534,60]
[325173680,1714548646310,-500.0,0.00057534,120]
[325173682,1714548646319,-500.0,0.00057534,120]
[325173684,1714548646328,-610.07403561,0.00057534,120]
[325173686,1714548646338,-500.0,0.00057534,120]
[325173688,1714548646347,-500.0,0.00057534,120]
[325173689,1714548646356,-500.0,0.00057534,120]
[325173691,1714548646364,-500.0,0.00057534,120]
[325173693,1714548646373,-500.0,0.00057534,120]
[325173695,1714548646382,-674.25,0.00057534,120]
[325173697,1714548646392,-500.0,0.00057534,120]
[325173699,1714548646401,-500.0,0.00057534,120]
[325173701,1714548646410,-500.0,0.00057534,120]
[325173703,1714548646419,-500.0,0.00057534,120]
[325173705,1714548646428,-497.94746166,0.00057534,120]
[325173708,1714548646438,-500.0,0.00057534,120]
[325173710,1714548646447,-500.0,0.00057534,120]
[325173713,1714548646456,-500.0,0.00057534,120]
[325173716,1714548646466,-500.0,0.00057534,120]
[325173719,1714548646482,-585.26,0.00057534,120]
[325173722,1714548646491,-500.0,0.00057534,120]
[325173725,1714548646500,-500.0,0.00057534,120]
[325173728,1714548646509,-500.0,0.00057534,120]
[325173731,1714548646518,-500.0,0.00057534,120]
[325173734,1714548646527,-500.0,0.00057534,120]
[325173737,1714548646535,-500.0,0.00057534,120]
[325173739,1714548646544,-500.0,0.00057534,120]
[325173742,1714548646554,-500.0,0.00057534,120]
[325173745,1714548646563,-500.0,0.00057534,120]
[325173748,1714548646572,-500.0,0.00057534,120]
[325173751,1714548646581,-500.0,0.00057534,120]
[325173753,1714548646590,-500.0,0.00057534,120]
[325173755,1714548646599,-500.0,0.00057534,120]
[325173758,1714548646608,-2045.55,0.00057534,120]
[325173760,1714548646618,-500.0,0.00057534,120]
[325173763,1714548646627,-500.0,0.00057534,120]
[325173766,1714548646636,-503.8040084,0.00057534,120]
[325173769,1714548646645,-500.0,0.00057534,120]
[325173772,1714548646654,-506.19,0.00057534,120]
[325173775,1714548646663,-500.0,0.00057534,120]
[325173778,1714548646672,-500.0,0.00057534,120]
[325173781,1714548646681,-502.98325191,0.00057534,120]
[325173784,1714548646690,-539.18071773,0.00057534,120]
[325173786,1714548646699,-500.0,0.00057534,120]
[325173788,1714548646710,-500.0,0.00057534,120]
[325173790,1714548646720,-500.0,0.00057534,120]
[325173792,1714548646733,-500.0,0.00057534,120]
[325173794,1714548646742,-500.0,0.00057534,120]
[325173796,1714548646751,-585.83,0.00057534,120]
[325173798,1714548646760,-500.0,0.00057534,20]
[325173800,1714548646770,-500.0,0.00057534,120]
[325173802,1714548646779,-1038.85,0.00057534,120]
[325173804,1714548646788,-500.0,0.00057534,120]
[325173807,1714548646797,-500.0,0.00057534,120]
[325173809,1714548646807,-500.0,0.00057534,120]
[325173811,1714548646816,-500.0,0.00057534,120]
[325173813,1714548646824,-500.0,0.00057534,120]
[325173815,1714548646834,-1947.99,0.00057534,120]
[325173817,1714548646843,-500.0,0.00057534,120]
[325173819,1714548646852,-500.0,0.00057534,120]
[325173821,1714548646861,-500.0,0.00057534,120]
[325173822,1714548646870,-500.0,0.00057534,120]
[325173824,1714548646879,-500.0,0.00057534,120]
[325173827,1714548646889,-500.0,0.00057534,120]
[325173828,1714548646898,-500.0,0.00057534,120]
[325173831,1714548646907,-500.0,0.00057534,120]
[325173832,1714548646916,-505.24799679,0.00057534,120]
[325173835,1714548646926,-500.0,0.00057534,120]
[325173836,1714548646935,-500.0,0.00057534,120]
[325173838,1714548646944,-500.0,0.00057534,120]
[325173840,1714548646954,-500.0,0.00057534,120]
[325173843,1714548646966,-500.0,0.00057534,120]
[325173845,1714548646981,-25152.44,0.00057534,120]
[325173847,1714548646990,-500.0,0.00057534,120]
[325173848,1714548647002,-500.0,0.00057534,120]
[325173850,1714548647013,-500.0,0.00057534,120]
[325173852,1714548647023,-503.42461169,0.00057534,120]
[325173854,1714548647032,-500.0,0.00057534,120]
[325173857,1714548647043,-521.9529511,0.00057534,120]
[325173859,1714548647051,-13490.46,0.00057534,120]
[325173861,1714548647062,-500.0,0.00057534,120]
[325173862,1714548647071,-500.0,0.00057534,120]
[325173865,1714548647081,-506.78251752,0.00057534,120]
[325173866,1714548647092,-956.85,0.00057534,120]
[325173867,1714548647102,-500.0,0.00057534,120]
[325173869,1714548647111,-500.0,0.00057534,120]
[325173871,1714548647120,-500.10390231,0.00057534,120]
[325173873,1714548647129,-500.0,0.00057534,120]
[325173875,1714548647139,-595.96942936,0.00057534,120]
[325173877,1714548647149,-500.0,0.00057534,120]
[325173879,1714548647158,-500.0,0.00057534,120]
[325173881,1714548647168,-2083.37,0.00057534,120]
[325173883,1714548647178,-500.0,0.00057534,120]
[325173885,1714548647187,-455.25613864,0.00057534,120]
[325173887,1714548647196,-500.0,0.00057534,120]
[325173889,1714548647206,-500.0,0.00057534,120]
[325173891,1714548647216,-2107.87,0.00057534,120]
[325173893,1714548647232,-500.0,0.00057534,120]